[Event "Live Chess"]
[Site "Chess.com"]
[Date "2021.04.16"]
[Round "3"]
[White "2Nf31-0"]
[Black "jacobchess857"]
[Result "1-0"]
[CurrentPosition "2k5/2Q5/p3N3/1p2P3/1P4PK/P2q4/6B1/3b4 b - -"]
[Timezone "UTC"]
[ECO "D13"]
[ECOUrl "https://www.chess.com/openings/Slav-Defense-Modern-Exchange-Variation-4...cxd5-5.Nc3"]
[UTCDate "2021.04.16"]
[UTCTime "01:30:33"]
[WhiteElo "978"]
[BlackElo "1623"]
[TimeControl "3600+5"]
[Termination "2Nf31-0 won by checkmate"]
[StartTime "01:30:33"]
[EndDate "2021.04.16"]
[EndTime "03:24:04"]
[Link "https://www.chess.com/game/live/12275766161"]

1. d4 {[%clk 1:00:04.5]} 1... d5 {[%clk 0:59:50.3]} 2. c4 {[%clk 1:00:06.7]} 2... c6 {[%clk 0:59:27.4]} 3. cxd5 {[%clk 0:59:56.5]} 3... cxd5 {[%clk 0:59:09.3]} 4. Nc3 {[%clk 0:59:57.9]} 4... Nf6 {[%clk 0:58:27.1]} 5. Nf3 {[%clk 0:59:36.2]} 5... Nc6 {[%clk 0:57:14.2]} 6. Bf4 {[%clk 0:59:29.1]} 6... e6 {[%clk 0:55:34.5]} 7. e3 {[%clk 0:59:13.3]} 7... a6 {[%clk 0:54:18.9]} 8. Bd3 {[%clk 0:58:37.3]} 8... Be7 {[%clk 0:52:25.3]} 9. a3 {[%clk 0:57:31.4]} 9... Bd7 {[%clk 0:51:11.2]} 10. Rc1 {[%clk 0:56:30.3]} 10... Rc8 {[%clk 0:49:58.8]} 11. h3 {[%clk 0:55:40.2]} 11... O-O {[%clk 0:46:54.4]} 12. O-O {[%clk 0:54:12.7]} 12... h6 {[%clk 0:44:39.7]} 13. Qe2 {[%clk 0:52:34.6]} 13... Nh7 {[%clk 0:41:53.7]} 14. Ne5 {[%clk 0:50:29.9]} 14... Nxe5 {[%clk 0:40:45.1]} 15. Bxe5 {[%clk 0:50:32]} 15... Bf6 {[%clk 0:39:23.3]} 16. Bd6 {[%clk 0:49:41.8]} 16... Be7 {[%clk 0:36:26.8]} 17. Be5 {[%clk 0:49:17.9]} 17... f5 {[%clk 0:35:06]} 18. Qh5 {[%clk 0:46:46.6]} 18... Bf6 {[%clk 0:32:50.6]} 19. Ne2 {[%clk 0:44:04.6]} 19... Bxe5 {[%clk 0:30:22.3]} 20. dxe5 {[%clk 0:44:06.3]} 20... Rxc1 {[%clk 0:28:09.9]} 21. Rxc1 {[%clk 0:44:08.4]} 21... Qb8 {[%clk 0:27:34.5]} 22. f4 {[%clk 0:42:46]} 22... Rc8 {[%clk 0:27:19.6]} 23. Rxc8+ {[%clk 0:41:28.3]} 23... Qxc8 {[%clk 0:27:02.6]} 24. Kf2 {[%clk 0:39:30.9]} 24... Qc7 {[%clk 0:24:46.2]} 25. g4 {[%clk 0:37:34.3]} 25... fxg4 {[%clk 0:20:40.1]} 26. hxg4 {[%clk 0:37:36.6]} 26... Qd8 {[%clk 0:19:37.8]} 27. Qh1 {[%clk 0:35:40.9]} 27... Nf8 {[%clk 0:18:36.2]} 28. Kg3 {[%clk 0:34:32.2]} 28... Qc8 {[%clk 0:17:14.5]} 29. Qc1 {[%clk 0:33:53.1]} 29... Qb8 {[%clk 0:16:07.9]} 30. Qc3 {[%clk 0:32:21.5]} 30... Qa7 {[%clk 0:15:03.4]} 31. Nd4 {[%clk 0:30:48.7]} 31... Qb6 {[%clk 0:14:55.1]} 32. b4 {[%clk 0:29:40.6]} 32... g6 {[%clk 0:13:12.5]} 33. Qe1 {[%clk 0:28:27.2]} 33... Kg7 {[%clk 0:12:55.6]} 34. Qh1 {[%clk 0:27:30.1]} 34... Qc7 {[%clk 0:12:17.6]} 35. Qe1 {[%clk 0:26:17]} 35... Ba4 {[%clk 0:11:00.6]} 36. Qd2 {[%clk 0:25:01.9]} 36... Kf7 {[%clk 0:09:43.3]} 37. Kf3 {[%clk 0:24:19]} 37... b5 {[%clk 0:09:11.5]} 38. Kg3 {[%clk 0:23:07.5]} 38... Kg7 {[%clk 0:08:43]} 39. e4 {[%clk 0:21:37.4]} 39... dxe4 {[%clk 0:08:23.5]} 40. Bxe4 {[%clk 0:21:39.9]} 40... Qc4 {[%clk 0:07:47.4]} 41. Qd3 {[%clk 0:21:02.4]} 41... Qc1 {[%clk 0:07:44.5]} 42. Bg2 {[%clk 0:19:56.6]} 42... Qe1+ {[%clk 0:07:23.7]} 43. Kh3 {[%clk 0:19:24.2]} 43... g5 {[%clk 0:05:58.4]} 44. fxg5 {[%clk 0:18:52.4]} 44... hxg5 {[%clk 0:05:56.9]} 45. Qg3 {[%clk 0:18:26.8]} 45... Qa1 {[%clk 0:05:18.1]} 46. Qe3 {[%clk 0:17:37.2]} 46... Qd1 {[%clk 0:04:44]} 47. Qxg5+ {[%clk 0:17:29.4]} 47... Kf7 {[%clk 0:04:34.9]} 48. Qf6+ {[%clk 0:17:01.4]} 48... Kg8 {[%clk 0:04:28.6]} 49. Qg5+ {[%clk 0:16:26.2]} 49... Kf7 {[%clk 0:04:22.6]} 50. Nf3 {[%clk 0:16:10.7]} 50... Qb3 {[%clk 0:03:58.3]} 51. Kh4 {[%clk 0:15:50.6]} 51... Qd3 {[%clk 0:03:42.9]} 52. Qf6+ {[%clk 0:15:19.9]} 52... Ke8 {[%clk 0:03:28.1]} 53. Ng5 {[%clk 0:14:45.9]} 53... Bd1 {[%clk 0:02:06.5]} 54. Qf7+ {[%clk 0:14:43.1]} 54... Kd8 {[%clk 0:02:08.1]} 55. Qxf8+ {[%clk 0:14:43.8]} 55... Kd7 {[%clk 0:02:08]} 56. Qf7+ {[%clk 0:14:18.4]} 56... Kd8 {[%clk 0:02:09.6]} 57. Nxe6+ {[%clk 0:14:19.2]} 57... Kc8 {[%clk 0:02:10.6]} 58. Qc7# {[%clk 0:14:22.6]} 1-0

[Event "Live Chess"]
[Site "Chess.com"]
[Date "2021.04.16"]
[Round "3"]
[White "NXBex"]
[Black "rimus11"]
[Result "1/2-1/2"]
[CurrentPosition "8/p7/4kp2/1P5R/6PP/1r3K2/8/8 w - -"]
[Timezone "UTC"]
[ECO "B10"]
[ECOUrl "https://www.chess.com/openings/Caro-Kann-Defense-Accelerated-Panov-Attack-2...d5-3.exd5-cxd5-4.cxd5"]
[UTCDate "2021.04.16"]
[UTCTime "01:31:52"]
[WhiteElo "1433"]
[BlackElo "1513"]
[TimeControl "3600+5"]
[Termination "Game drawn by repetition"]
[StartTime "01:31:52"]
[EndDate "2021.04.16"]
[EndTime "03:38:09"]
[Link "https://www.chess.com/game/live/12275780645"]

1. e4 {[%clk 1:00:04]} 1... c6 {[%clk 0:50:58.1]} 2. c4 {[%clk 1:00:05.1]} 2... d5 {[%clk 0:50:18.1]} 3. cxd5 {[%clk 1:00:07.4]} 3... cxd5 {[%clk 0:50:21.3]} 4. exd5 {[%clk 1:00:11.3]} 4... Qxd5 {[%clk 0:50:24.3]} 5. Nc3 {[%clk 1:00:12.7]} 5... Qd8 {[%clk 0:49:48.3]} 6. d4 {[%clk 0:59:26.4]} 6... Nf6 {[%clk 0:45:31.3]} 7. Nf3 {[%clk 0:58:51.3]} 7... Bg4 {[%clk 0:43:24.9]} 8. h3 {[%clk 0:57:27.5]} 8... Bd7 {[%clk 0:41:58.6]} 9. Bc4 {[%clk 0:57:14.9]} 9... e6 {[%clk 0:41:42.2]} 10. O-O {[%clk 0:56:47.6]} 10... Be7 {[%clk 0:40:38.5]} 11. Re1 {[%clk 0:53:07.7]} 11... Bc6 {[%clk 0:34:38.9]} 12. Ne5 {[%clk 0:50:07.2]} 12... O-O {[%clk 0:32:34.4]} 13. Nxc6 {[%clk 0:48:35.6]} 13... bxc6 {[%clk 0:32:27.2]} 14. Bf4 {[%clk 0:42:15.5]} 14... Bd6 {[%clk 0:29:05.6]} 15. Bxd6 {[%clk 0:40:47.8]} 15... Qxd6 {[%clk 0:29:05.4]} 16. Ne4 {[%clk 0:40:07.6]} 16... Nxe4 {[%clk 0:28:45.2]} 17. Rxe4 {[%clk 0:39:50.5]} 17... Nd7 {[%clk 0:28:15]} 18. Rh4 {[%clk 0:36:21.2]} 18... Nf6 {[%clk 0:25:00.5]} 19. Qd2 {[%clk 0:31:11.6]} 19... Rfd8 {[%clk 0:23:04.8]} 20. Re1 {[%clk 0:28:48.7]} 20... Rab8 {[%clk 0:21:36.2]} 21. b3 {[%clk 0:27:37.2]} 21... c5 {[%clk 0:17:16.1]} 22. Rd1 {[%clk 0:23:23]} 22... Qe7 {[%clk 0:16:39.2]} 23. Qg5 {[%clk 0:20:53]} 23... Rb7 {[%clk 0:15:58.7]} 24. Rd3 {[%clk 0:19:40.2]} 24... Rbd7 {[%clk 0:15:16.1]} 25. Rg3 {[%clk 0:19:07.5]} 25... g6 {[%clk 0:13:43]} 26. Qxc5 {[%clk 0:15:48.6]} 26... Qxc5 {[%clk 0:12:08.3]} 27. dxc5 {[%clk 0:15:50.6]} 27... Rd1+ {[%clk 0:11:48.1]} 28. Kh2 {[%clk 0:15:15.4]} 28... Ra1 {[%clk 0:11:08.7]} 29. Rd3 {[%clk 0:11:32.8]} 29... Rxd3 {[%clk 0:10:53.3]} 30. Bxd3 {[%clk 0:11:31.5]} 30... Rxa2 {[%clk 0:10:39]} 31. c6 {[%clk 0:10:44.8]} 31... Nd5 {[%clk 0:09:52.1]} 32. Rd4 {[%clk 0:09:21.3]} 32... Ra5 {[%clk 0:07:18.2]} 33. Bc4 {[%clk 0:06:57.9]} 33... Rc5 {[%clk 0:06:35.6]} 34. Bxd5 {[%clk 0:05:56.3]} 34... exd5 {[%clk 0:06:09.8]} 35. b4 {[%clk 0:05:43.4]} 35... Rxc6 {[%clk 0:06:07.9]} 36. Rxd5 {[%clk 0:05:46]} 36... Rb6 {[%clk 0:06:01.5]} 37. b5 {[%clk 0:05:42]} 37... Rb7 {[%clk 0:05:17.1]} 38. Kg3 {[%clk 0:05:35.7]} 38... Kg7 {[%clk 0:05:20]} 39. Kf4 {[%clk 0:05:26.3]} 39... Kf6 {[%clk 0:05:18.7]} 40. g4 {[%clk 0:05:00.4]} 40... h6 {[%clk 0:05:04.4]} 41. h4 {[%clk 0:04:49.9]} 41... Ke6 {[%clk 0:04:51.4]} 42. Ke4 {[%clk 0:04:40.5]} 42... f6 {[%clk 0:03:57.8]} 43. f4 {[%clk 0:03:54.5]} 43... Rb6 {[%clk 0:03:12.7]} 44. f5+ {[%clk 0:03:15.8]} 44... gxf5+ {[%clk 0:02:35.3]} 45. Rxf5 {[%clk 0:03:13.6]} 45... Rd6 {[%clk 0:02:15.5]} 46. Rh5 {[%clk 0:03:07.7]} 46... Rd1 {[%clk 0:02:10.2]} 47. Rxh6 {[%clk 0:03:06.4]} 47... Re1+ {[%clk 0:02:09.2]} 48. Kf3 {[%clk 0:02:45.5]} 48... Rf1+ {[%clk 0:01:55.1]} 49. Kg2 {[%clk 0:02:39.6]} 49... Rb1 {[%clk 0:01:30.3]} 50. Rh5 {[%clk 0:02:27]} 50... Rb2+ {[%clk 0:01:26.5]} 51. Kf3 {[%clk 0:02:25.3]} 51... Rb3+ {[%clk 0:01:23.5]} 52. Ke4 {[%clk 0:02:24.6]} 52... Rb4+ {[%clk 0:01:24.1]} 53. Kf3 {[%clk 0:02:20.7]} 53... Rb3+ {[%clk 0:01:28]} 54. Ke2 {[%clk 0:02:08.2]} 54... Rb2+ {[%clk 0:01:28.2]} 55. Kf3 {[%clk 0:01:49.4]} 55... Rb3+ {[%clk 0:01:31.7]} 1/2-1/2

[Event "Live Chess"]
[Site "Chess.com"]
[Date "2021.04.16"]
[Round "3"]
[White "dareonion"]
[Black "aanval22"]
[Result "1-0"]
[CurrentPosition "r7/pppB4/1k1p4/4p1B1/4P3/2NP3P/PPP2K2/R7 b - -"]
[Timezone "UTC"]
[ECO "C57"]
[ECOUrl "https://www.chess.com/openings/Italian-Game-Traxler-Bishop-Sacrifice-Line-5...Ke7"]
[UTCDate "2021.04.16"]
[UTCTime "01:30:50"]
[WhiteElo "1323"]
[BlackElo "1014"]
[TimeControl "3600+5"]
[Termination "dareonion won by resignation"]
[StartTime "01:30:50"]
[EndDate "2021.04.16"]
[EndTime "03:21:51"]
[Link "https://www.chess.com/game/live/12275767599"]

1. e4 {[%clk 1:00:00.3]} 1... e5 {[%clk 0:59:57.8]} 2. Nf3 {[%clk 1:00:03.1]} 2... Nc6 {[%clk 1:00:01.1]} 3. Bc4 {[%clk 1:00:05.9]} 3... Nf6 {[%clk 1:00:04.4]} 4. Ng5 {[%clk 1:00:08.8]} 4... Bc5 {[%clk 1:00:06.6]} 5. Bxf7+ {[%clk 1:00:10.9]} 5... Ke7 {[%clk 1:00:09.9]} 6. Bc4 {[%clk 1:00:13]} 6... Rf8 {[%clk 1:00:12]} 7. Nc3 {[%clk 1:00:16.4]} 7... d6 {[%clk 1:00:12.7]} 8. d3 {[%clk 0:55:08.3]} 8... h6 {[%clk 0:59:44.3]} 9. Nf3 {[%clk 0:53:54.2]} 9... Bg4 {[%clk 0:59:42]} 10. h3 {[%clk 0:45:03.6]} 10... Bh5 {[%clk 0:59:26.3]} 11. O-O {[%clk 0:33:38.7]} 11... Nd4 {[%clk 0:57:40.1]} 12. g4 {[%clk 0:33:27]} 12... Nxf3+ {[%clk 0:57:18]} 13. Qxf3 {[%clk 0:33:29.1]} 13... Nxg4 {[%clk 0:57:18.5]} 14. Qg2 {[%clk 0:21:03.4]} 14... Nxf2 {[%clk 0:53:51.1]} 15. Qxg7+ {[%clk 0:20:50.3]} 15... Ke8 {[%clk 0:53:53.5]} 16. Bxh6 {[%clk 0:20:47.3]} 16... Qh4 {[%clk 0:48:15.5]} 17. Qxf8+ {[%clk 0:09:16.1]} 17... Kd7 {[%clk 0:48:17.5]} 18. Qf5+ {[%clk 0:05:59.5]} 18... Kc6 {[%clk 0:22:20.3]} 19. Rxf2 {[%clk 0:06:01.5]} 19... Be8 {[%clk 0:10:59]} 20. Bg5 {[%clk 0:02:48.8]} 20... Qg3+ {[%clk 0:10:46]} 21. Kf1 {[%clk 0:02:52.6]} 21... Bd7 {[%clk 0:10:26.8]} 22. Bb5+ {[%clk 0:02:54]} 22... Kb6 {[%clk 0:10:22.6]} 23. Bxd7 {[%clk 0:02:57.2]} 23... Bxf2 {[%clk 0:10:12.5]} 24. Qxf2+ {[%clk 0:03:00.8]} 24... Qxf2+ {[%clk 0:10:13.6]} 25. Kxf2 {[%clk 0:03:05.7]} 1-0